fUSD/lending_fUSD_20250814
["ID","MTS","AMOUNT","RATE_DAILY","PERIOD"]
[379205221,1755185524525,-576.698058,0.00027808,7]
[379205222,1755185524534,-576.698058,0.00027808,7]
[379205223,1755185524544,-576.698065,0.00027808,7]
[379205224,1755185524554,-179.034065,0.00027808,7]
[379205225,1755185524564,-179.034065,0.00027808,7]
[379205226,1755185524575,-179.034065,0.00027808,7]
[379205227,1755185524585,-179.034059,0.00027808,7]
[379205228,1755185524594,-967.835822,0.00027808,7]
[379205229,1755185524605,-967.835822,0.00027808,7]
[379205230,1755185524614,-967.835822,0.00027808,7]
[379205231,1755185524624,-967.835827,0.00027808,7]
[379205232,1755185524635,-2323.101165,0.00027808,7]
[379205233,1755185524645,-2323.101165,0.00027808,7]
[379205234,1755185524655,-2323.101165,0.00027808,7]
[379205235,1755185524664,-2323.101167,0.00027808,7]
[379205236,1755185524673,-400.0,0.00027808,2]
[379205237,1755185524683,-404.70167002,0.00027808,2]
[379205238,1755185524695,-400.0,0.00027808,2]
[379205239,1755185524705,-400.0,0.00027808,2]
[379205240,1755185524715,-400.0,0.00027808,2]
[379205241,1755185524725,-400.0,0.00027808,2]
[379205242,1755185524734,-400.0,0.00027808,2]
[379205243,1755185524744,-403.87698245,0.00027808,2]
[379205244,1755185524753,-892.76,0.00027808,2]
[379205245,1755185524763,-400.0,0.00027808,2]
[379205246,1755185524773,-400.0,0.00027808,2]
[379205247,1755185524783,-14.00150267,0.00027808,2]
[379205248,1755185527109,-400.0,0.00027397,2]
[379205249,1755185527119,-191.18857283,0.00027397,2]
[379205250,1755185527162,-208.81142717,0.00027397,2]
[379205251,1755185527172,-19142.75,0.00027534,2]
[379205252,1755185527183,-400.0,0.00027534,2]
[379205253,1755185527194,-400.0,0.00027534,2]
[379205254,1755185527203,-2484.242437,0.00027534,7]
[379205255,1755185527214,-6299.18,0.00027671,2]
[379205256,1755185527226,-400.0,0.00027671,2]
[379205257,1755185527236,-5325.98770318,0.00027671,2]
[379205258,1755185527248,-13816.76229682,0.00027671,2]
[379205259,1755185527257,-400.0,0.00027671,2]
[379205260,1755185527268,-385.99849733,0.00027808,2]
[379205261,1755185527278,-340.0,0.00027808,2]
[379205262,1755185527287,-400.0,0.00027808,2]
[379205263,1755185527297,-400.0,0.00027808,2]
[379205264,1755185527307,-400.0,0.00027808,2]
[379205265,1755185527317,-400.0,0.00027808,2]
[379205266,1755185527327,-400.0,0.00027808,2]
[379205267,1755185527337,-473.89,0.00027808,2]
[379205268,1755185527347,-400.0,0.00027808,2]
[379205269,1755185527356,-400.0,0.00027808,2]
[379205270,1755185527366,-486.99214968,0.00027808,2]
[379205271,1755185527375,-400.0,0.00027808,2]
[379205272,1755185527385,-2326.69,0.00027808,2]
[379205273,1755185527395,-465.35487005,0.00027808,2]
[379205274,1755185527404,-400.0,0.00027808,2]
[379205275,1755185527414,-400.0,0.00027808,2]
[379205276,1755185527424,-1047.09,0.00027808,2]
[379205277,1755185527434,-400.0,0.00027808,2]
[379205278,1755185527444,-400.0,0.00027808,2]
[379205279,1755185527454,-400.0,0.00027808,2]
[379205280,1755185527464,-2944.03,0.00027808,2]
[379205281,1755185527474,-400.0,0.00027808,2]
[379205282,1755185527484,-400.0,0.00027808,2]
[379205283,1755185527494,-400.0,0.00027808,2]
[379205284,1755185527504,-400.0,0.00027808,2]
[379205285,1755185527514,-1072.61,0.00027808,2]
[379205286,1755185527523,-400.0,0.00027808,2]
[379205287,1755185527533,-500.0,0.00027808,2]
[379205288,1755185527543,-1670.88,0.00027808,2]
[379205289,1755185527552,-400.0,0.00027808,2]
[379205290,1755185527562,-454.04,0.00027808,2]
[379205291,1755185527572,-1845.18,0.00027808,2]
[379205292,1755185527583,-1375.3,0.00027808,2]
[379205293,1755185527593,-400.0,0.00027808,2]
[379205294,1755185527603,-400.0,0.00027808,2]
[379205295,1755185527613,-1571.84,0.00027808,2]
[379205296,1755185527623,-1416.18,0.00027808,2]
[379205297,1755185527632,-1126.96,0.00027808,2]
[379205298,1755185527642,-575.63,0.00027808,2]
[379205299,1755185527652,-400.0,0.00027808,2]
[379205300,1755185527662,-400.0,0.00027808,2]
[379205301,1755185527671,-400.0,0.00027808,2]
[379205302,1755185527680,-400.0,0.00027808,2]
[379205303,1755185527690,-1854.2,0.00027808,2]
[379205304,1755185527702,-400.0,0.00027808,2]
[379205305,1755185527712,-1417.13,0.00027808,2]
[379205306,1755185527721,-151.0,0.00027808,7]
[379205307,1755185527731,-177.604191,0.00027808,7]
[379205308,1755185527740,-400.0,0.00027808,2]
[379205309,1755185527750,-400.0,0.00027808,2]
[379205310,1755185527759,-400.0,0.00027808,2]
[379205311,1755185527769,-478.05,0.00027808,2]
[379205312,1755185527779,-400.0,0.00027808,2]
[379205313,1755185527788,-151.0,0.00027808,2]
[379205314,1755185527798,-151.0,0.00027808,2]
[379205315,1755185527807,-177.604199,0.00027808,7]
[379205316,1755185527816,-400.0,0.00027808,2]
[379205317,1755185527826,-972.4,0.00027808,2]
[379205318,1755185527835,-400.0,0.00027808,2]
[379205319,1755185527844,-400.0,0.00027808,2]
[379205320,1755185527854,-400.0,0.00027808,2]
[379205321,1755185527863,-808.3,0.00027808,2]
[379205322,1755185527873,-664.68,0.00027808,2]
[379205323,1755185527882,-400.0,0.00027808,2]
[379205324,1755185527892,-400.0,0.00027808,2]
[379205325,1755185527901,-2557.48,0.00027808,2]
[379205326,1755185527911,-400.0,0.00027808,2]
[379205327,1755185527921,-400.0,0.00027808,2]
[379205328,1755185527930,-1852.38,0.00027808,2]
[379205329,1755185527940,-2288.98,0.00027808,2]
[379205330,1755185527955,-400.0,0.00027808,2]
[379205331,1755185527964,-400.0,0.00027808,2]
[379205332,1755185527974,-470.17,0.00027808,2]
[379205333,1755185527984,-563.03,0.00027808,2]
[379205334,1755185527994,-400.0,0.00027808,2]
[379205335,1755185528004,-694.29,0.00027808,2]
[379205336,1755185528013,-1363.35,0.00027808,2]
[379205337,1755185528023,-400.0,0.00027808,2]
[379205338,1755185528033,-400.0,0.00027808,2]
[379205339,1755185528042,-727.61,0.00027808,2]
[379205340,1755185528052,-815.91,0.00027808,2]
[379205341,1755185528061,-403.37,0.00027808,2]
[379205342,1755185528071,-611.94,0.00027808,2]
[379205343,1755185528081,-400.0,0.00027808,2]
[379205344,1755185528091,-400.0,0.00027808,2]
[379205345,1755185528100,-1871.43,0.00027808,2]
[379205346,1755185528110,-757.72,0.00027808,2]
[379205347,1755185528119,-941.81,0.00027808,2]
[379205348,1755185528129,-400.0,0.00027808,2]
[379205349,1755185528139,-400.0,0.00027808,2]
[379205350,1755185528153,-506.73,0.00027808,2]
[379205351,1755185528162,-839.81,0.00027808,2]
[379205352,1755185528173,-1182.0,0.00027808,2]
[379205353,1755185528183,-1029.93,0.00027808,2]
[379205354,1755185528195,-400.0,0.00027808,2]
[379205355,1755185528204,-457.83,0.00027808,2]
[379205356,1755185528214,-400.0,0.00027808,2]
[379205357,1755185528224,-953.48,0.00027808,2]
[379205358,1755185528234,-2633.43,0.00027808,2]
[379205359,1755185528244,-1276.56,0.00027808,2]
[379205360,1755185528254,-1988.68,0.00027808,2]
[379205361,1755185528264,-300.0,0.00027808,2]
[379205362,1755185528273,-477.57,0.00027808,2]
[379205363,1755185528284,-400.0,0.00027808,2]
[379205364,1755185528294,-1599.8,0.00027808,2]
[379205365,1755185528305,-151.0,0.00027808,7]
[379205366,1755185528315,-151.0,0.00027808,7]
[379205367,1755185528325,-772.53,0.00027808,2]
[379205368,1755185528335,-1625.72,0.00027808,2]
[379205369,1755185528344,-839.45,0.00027808,2]
[379205370,1755185528353,-2573.23,0.00027808,2]
[379205371,1755185528363,-400.0,0.00027808,2]
[379205372,1755185528372,-400.0,0.00027808,2]
[379205373,1755185528382,-609.91,0.00027808,2]
[379205374,1755185528391,-601.91,0.00027808,2]
[379205375,1755185528401,-400.0,0.00027808,2]
[379205376,1755185528411,-400.0,0.00027808,2]
[379205377,1755185528420,-878.02,0.00027808,2]
[379205378,1755185528430,-472.87,0.00027808,2]
[379205379,1755185528440,-400.0,0.00027808,2]
[379205380,1755185528453,-466.49,0.00027808,2]
[379205381,1755185528463,-550.85,0.00027808,2]
[379205382,1755185528472,-566.99,0.00027808,2]
[379205383,1755185528482,-656.73,0.00027808,2]
[379205384,1755185528493,-405.11,0.00027808,2]
[379205385,1755185528503,-400.0,0.00027808,2]
[379205386,1755185528512,-400.0,0.00027808,2]
[379205387,1755185528522,-400.0,0.00027808,2]
[379205388,1755185528533,-898.67,0.00027808,2]
[379205389,1755185528543,-2148.71,0.00027808,2]
[379205390,1755185528552,-2819.78,0.00027808,2]
[379205391,1755185528561,-2087.33,0.00027808,2]
[379205392,1755185528571,-400.0,0.00027808,2]
[379205393,1755185528580,-400.0,0.00027808,2]
[379205394,1755185528590,-534.83,0.00027808,2]
[379205395,1755185528603,-400.0,0.00027808,2]
[379205396,1755185528613,-400.0,0.00027808,2]
[379205397,1755185528623,-2749.41,0.00027808,2]
[379205398,1755185528633,-400.0,0.00027808,2]
[379205399,1755185528643,-567.86,0.00027808,2]
[379205400,1755185528652,-400.0,0.00027808,2]
[379205401,1755185528661,-400.0,0.00027808,2]
[379205402,1755185528671,-906.89,0.00027808,2]
[379205403,1755185528681,-400.0,0.00027808,2]
[379205404,1755185528691,-400.0,0.00027808,2]
[379205405,1755185528702,-937.58,0.00027808,2]
[379205406,1755185528712,-3495.28,0.00027808,2]
[379205407,1755185528721,-400.0,0.00027808,2]
[379205408,1755185528731,-400.0,0.00027808,2]
[379205409,1755185528740,-400.0,0.00027808,2]
[379205410,1755185528750,-400.0,0.00027808,2]
[379205411,1755185528759,-400.0,0.00027808,2]
[379205412,1755185528769,-400.0,0.00027808,2]
[379205413,1755185528779,-824.99,0.00027808,2]
[379205414,1755185528788,-400.0,0.00027808,2]
[379205415,1755185528798,-808.7,0.00027808,2]
[379205416,1755185528808,-400.0,0.00027808,2]
[379205417,1755185528817,-400.0,0.00027808,2]
[379205418,1755185528827,-523.43,0.00027808,2]
[379205419,1755185528836,-506.37302269,0.00027808,2]
[379205420,1755185528845,-456.78,0.00027808,2]
[379205421,1755185528855,-428.10781697,0.00027808,2]
[379205422,1755185528865,-400.0,0.00027808,2]
[379205423,1755185528876,-400.0,0.00027808,2]
[379205424,1755185528885,-400.0,0.00027808,2]
[379205425,1755185528895,-400.0,0.00027808,2]
[379205426,1755185528904,-1027.17,0.00027808,2]
[379205427,1755185528913,-472.71,0.00027808,2]
[379205428,1755185528923,-400.0,0.00027808,2]
[379205429,1755185528932,-400.0,0.00027808,2]
[379205430,1755185528941,-390.87769871,0.00027808,2]
[379205431,1755185528952,-400.0,0.00027808,2]
[379205432,1755185528962,-733.49,0.00027808,2]
[379205433,1755185528972,-1628.88,0.00027808,2]
[379205434,1755185528981,-400.0,0.00027808,2]
[379205435,1755185528991,-421.82,0.00027808,2]
[379205436,1755185529000,-400.0,0.00027808,2]
[379205437,1755185529010,-400.0,0.00027808,2]
[379205438,1755185529019,-1460.13,0.00027808,2]
[379205439,1755185529029,-400.0,0.00027808,2]
[379205440,1755185529038,-400.0,0.00027808,2]
[379205441,1755185529047,-400.0,0.00027808,2]
[379205442,1755185529056,-400.0,0.00027808,2]
[379205443,1755185529066,-1120.5,0.00027808,2]
[379205444,1755185529075,-1258.33,0.00027808,2]
[379205445,1755185529084,-473.55,0.00027808,2]
[379205446,1755185529093,-340.26863407,0.00027808,2]
[379205447,1755185529103,-400.0,0.00027808,2]
[379205448,1755185529112,-400.0,0.00027808,2]
[379205449,1755185529121,-400.0,0.00027808,2]
[379205450,1755185529130,-643.25,0.00027808,2]
[379205451,1755185529141,-812.19,0.00027808,2]
[379205452,1755185529153,-400.0,0.00027808,2]
[379205453,1755185529163,-3592.83,0.00027808,2]
[379205454,1755185529172,-1167.94,0.00027808,2]
[379205455,1755185529183,-400.0,0.00027808,2]
[379205456,1755185529195,-400.0,0.00027808,2]
[379205457,1755185529204,-543.09,0.00027808,2]
[379205458,1755185529214,-400.0,0.00027808,2]
[379205459,1755185529223,-400.0,0.00027808,2]
[379205460,1755185529234,-400.0,0.00027808,2]
[379205461,1755185529243,-400.0,0.00027808,2]
[379205462,1755185529253,-400.0,0.00027808,2]
[379205463,1755185529263,-370.52138842,0.00027808,2]
[379205464,1755185529273,-1103.19,0.00027808,2]
[379205465,1755185529282,-904.57,0.00027808,2]
[379205466,1755185529292,-400.0,0.00027808,2]
[379205467,1755185529302,-1927.69,0.00027808,2]
[379205468,1755185529312,-2661.37,0.00027808,2]
[379205469,1755185529321,-400.0,0.00027808,2]
[379205470,1755185529331,-400.0,0.00027808,2]
[379205471,1755185529340,-1139.76,0.00027808,2]
[379205472,1755185529350,-400.0,0.00027808,2]
[379205473,1755185529359,-1304.49,0.00027808,2]
[379205474,1755185529369,-1641.15,0.00027808,2]
[379205475,1755185529379,-3415.94,0.00027808,2]
[379205476,1755185529389,-1021.49,0.00027808,2]
[379205477,1755185529398,-712.2,0.00027808,2]
[379205478,1755185529408,-1151.23,0.00027808,2]
[379205479,1755185529417,-400.0,0.00027808,2]
[379205480,1755185529427,-842.84,0.00027808,2]
[379205481,1755185529436,-1149.42,0.00027808,2]
[379205482,1755185529449,-812.08,0.00027808,2]
[379205483,1755185529458,-697.11,0.00027808,2]
[379205484,1755185529468,-915.56,0.00027808,2]
[379205485,1755185529478,-400.0,0.00027808,2]
[379205486,1755185529488,-1398.5,0.00027808,2]
[379205487,1755185529497,-2033.51,0.00027808,2]
[379205488,1755185529507,-995.39,0.00027808,2]
[379205489,1755185529518,-725.5,0.00027808,2]
[379205490,1755185529528,-561.3,0.00027808,2]
[379205491,1755185529537,-656.12,0.00027808,2]
[379205492,1755185529547,-400.0,0.00027808,2]
[379205493,1755185529556,-2155.92,0.00027808,2]
[379205494,1755185529567,-1141.99,0.00027808,2]
[379205495,1755185529578,-400.0,0.00027808,2]
[379205496,1755185529588,-400.0,0.00027808,2]
[379205497,1755185529598,-400.0,0.00027808,2]
[379205498,1755185529608,-406.89,0.00027808,2]
[379205499,1755185529618,-400.0,0.00027808,2]
[379205500,1755185529628,-1177.51,0.00027808,2]
[379205501,1755185529638,-985.81,0.00027808,2]
[379205502,1755185529648,-400.0,0.00027808,2]
[379205503,1755185529658,-502.96,0.00027808,2]
[379205504,1755185529667,-975.14,0.00027808,2]
[379205505,1755185529677,-429.03,0.00027808,2]
[379205506,1755185529687,-400.0,0.00027808,2]
[379205507,1755185529700,-966.6,0.00027808,2]
[379205508,1755185529709,-2147.72,0.00027808,2]
[379205509,1755185529719,-400.0,0.00027808,2]
[379205510,1755185529728,-406.05694908,0.00027808,2]
[379205511,1755185529738,-863.92,0.00027808,2]
[379205512,1755185529748,-746.14,0.00027808,2]
[379205513,1755185529757,-400.0,0.00027808,2]
[379205514,1755185529768,-892.64,0.00027808,2]
[379205515,1755185529778,-1118.96,0.00027808,2]
[379205516,1755185529788,-2015.03,0.00027808,2]
[379205517,1755185529798,-400.0,0.00027808,2]
[379205518,1755185529808,-400.0,0.00027808,2]
[379205519,1755185529817,-1965.52,0.00027808,2]
[379205520,1755185530144,-400.0,0.00027808,2]
[379205521,1755185530156,-2019.62,0.00027808,2]
[379205522,1755185530166,-400.0,0.00027808,2]
[379205523,1755185530184,-400.0,0.00027808,2]
[379205524,1755185530199,-400.0,0.00027808,2]
[379205525,1755185530209,-883.01,0.00027808,2]
[379205526,1755185530224,-400.0,0.00027808,2]
[379205527,1755185530243,-400.0,0.00027808,2]
[379205528,1755185530253,-1195.07,0.00027808,2]
[379205529,1755185530262,-400.0,0.00027808,2]
[379205530,1755185530273,-4694.06,0.00027808,2]
[379205531,1755185530283,-400.0,0.00027808,2]
[379205532,1755185530292,-400.0,0.00027808,2]
[379205533,1755185530302,-435.26,0.00027808,2]
[379205534,1755185530312,-670.25,0.00027808,2]
[379205535,1755185530322,-582.84,0.00027808,2]
[379205536,1755185530332,-432.95,0.00027808,2]
[379205537,1755185530342,-814.15,0.00027808,2]
[379205538,1755185530352,-2919.01,0.00027808,2]
[379205539,1755185530362,-2239.205914,0.00027808,7]
[379205540,1755185530372,-400.0,0.00027808,2]
[379205541,1755185530381,-400.0,0.00027808,2]
[379205542,1755185530391,-1068.16,0.00027808,2]
[379205543,1755185530401,-1779.37,0.00027808,2]
[379205544,1755185530410,-1788.51,0.00027808,2]
[379205545,1755185530420,-1009.91,0.00027808,2]
[379205546,1755185530430,-709.12,0.00027808,2]
[379205547,1755185530440,-2937.87,0.00027808,2]
[379205548,1755185530452,-2239.205913,0.00027808,7]
[379205549,1755185530462,-448.55,0.00027808,2]
[379205550,1755185530472,-1266.11,0.00027808,2]
[379205551,1755185530481,-400.0,0.00027808,2]
[379205552,1755185530492,-400.0,0.00027808,2]
[379205553,1755185530501,-1737.48,0.00027808,2]
[379205554,1755185530511,-685.83,0.00027808,2]
[379205555,1755185530521,-2063.92,0.00027808,2]
[379205556,1755185530531,-4646.19,0.00027808,2]
[379205557,1755185530540,-1007.08,0.00027808,2]
[379205558,1755185530550,-1927.33,0.00027808,2]
[379205559,1755185530559,-910.53,0.00027808,2]
[379205560,1755185530568,-1220.99,0.00027808,2]
[379205561,1755185530577,-836.87,0.00027808,2]
[379205562,1755185530586,-216.57704694,0.00027808,2]
[379205563,1755185530596,-561.27,0.00027808,2]
[379205564,1755185530605,-400.0,0.00027808,2]
[379205565,1755185530615,-602.22,0.00027808,2]
[379205566,1755185530624,-400.0,0.00027808,2]
[379205567,1755185530633,-543.66,0.00027808,2]
[379205568,1755185530643,-1223.1,0.00027808,2]
[379205569,1755185530654,-400.0,0.00027808,2]
[379205570,1755185530663,-4302.08,0.00027808,2]
[379205571,1755185530673,-400.0,0.00027808,2]
[379205572,1755185530682,-1947.07,0.00027808,2]
[379205573,1755185530692,-2942.31,0.00027808,2]
[379205574,1755185530704,-2073.61,0.00027808,2]
[379205575,1755185530713,-2925.17,0.00027808,2]
[379205576,1755185530722,-400.0,0.00027808,2]
[379205577,1755185530732,-609.39,0.00027808,2]
[379205578,1755185530742,-400.0,0.00027808,2]
[379205579,1755185530751,-1261.95,0.00027808,2]
[379205580,1755185530761,-4202.312341,0.00027808,7]
[379205581,1755185530771,-4202.312341,0.00027808,7]
[379205582,1755185530780,-601.11,0.00027808,2]
[379205583,1755185530790,-440.56,0.00027808,2]
[379205584,1755185530800,-683.8,0.00027808,2]
[379205585,1755185530810,-1067.57,0.00027808,2]
[379205586,1755185530820,-336.66725019,0.00027808,2]
[379205587,1755185530830,-400.0,0.00027808,2]
[379205588,1755185530839,-4202.312341,0.00027808,7]
[379205589,1755185530849,-400.0,0.00027808,2]
[379205590,1755185530859,-4202.312341,0.00027808,7]
[379205591,1755185530869,-1886.64,0.00027808,2]
[379205592,1755185530879,-400.0,0.00027808,2]
[379205593,1755185530889,-876.09,0.00027808,2]
[379205594,1755185530899,-3399.56,0.00027808,2]
[379205595,1755185530909,-400.0,0.00027808,2]
[379205596,1755185530919,-1673.17,0.00027808,2]
[379205597,1755185530929,-400.0,0.00027808,2]
[379205598,1755185530940,-446.11,0.00027808,2]
[379205599,1755185530953,-1500.69,0.00027808,2]
[379205600,1755185530963,-2875.13,0.00027808,2]
[379205601,1755185530972,-505.65,0.00027808,2]
[379205602,1755185530982,-400.0,0.00027808,2]
[379205603,1755185530992,-400.0,0.00027808,2]
[379205604,1755185531003,-400.0,0.00027808,2]
[379205605,1755185531013,-495.7,0.00027808,2]
[379205606,1755185531024,-279.15512764,0.00027808,2]
[379205607,1755185531033,-427.96,0.00027808,2]
[379205608,1755185531043,-420.47,0.00027808,2]
[379205609,1755185531053,-869.92,0.00027808,2]
[379205610,1755185531062,-520.02,0.00027808,2]
[379205611,1755185531072,-400.0,0.00027808,2]
[379205612,1755185531082,-400.0,0.00027808,2]
[379205613,1755185531091,-955.46,0.00027808,2]
[379205614,1755185531100,-1767.72,0.00027808,2]
[379205615,1755185531110,-1838.44,0.00027808,2]
[379205616,1755185531120,-1837.81,0.00027808,2]
[379205617,1755185531130,-400.0,0.00027808,2]
[379205618,1755185531140,-6471.93,0.00027808,2]
[379205619,1755185531154,-1043.23,0.00027808,2]
[379205620,1755185531164,-400.0,0.00027808,2]
[379205621,1755185531174,-1699.42,0.00027808,2]
[379205622,1755185531184,-1499.54,0.00027808,2]
[379205623,1755185531198,-400.0,0.00027808,2]
[379205624,1755185531207,-436.12,0.00027808,2]
[379205625,1755185531218,-1158.0,0.00027808,2]
[379205626,1755185531228,-400.0,0.00027808,2]
[379205627,1755185531238,-1417.52,0.00027808,2]
[379205628,1755185531248,-4055.59,0.00027808,2]
[379205629,1755185531258,-400.0,0.00027808,2]
[379205630,1755185531268,-5260.64,0.00027808,2]
[379205631,1755185531278,-2032.85,0.00027808,2]
[379205632,1755185531288,-400.0,0.00027808,2]
[379205633,1755185531298,-1315.83,0.00027808,2]
[379205634,1755185531307,-400.0,0.00027808,2]
[379205635,1755185531317,-4504.75,0.00027808,2]
[379205636,1755185531327,-3006.36,0.00027808,2]
[379205637,1755185531336,-400.0,0.00027808,2]
[379205638,1755185531347,-452.07,0.00027808,2]
[379205639,1755185531356,-400.0,0.00027808,2]
[379205640,1755185531366,-400.0,0.00027808,2]
[379205641,1755185531376,-1647.08,0.00027808,2]
[379205642,1755185531385,-400.0,0.00027808,2]
[379205643,1755185531395,-2373.06,0.00027808,2]
[379205644,1755185531405,-2335.488269,0.00027808,7]
[379205645,1755185531415,-400.0,0.00027808,2]
[379205646,1755185531425,-2335.488269,0.00027808,7]
[379205647,1755185531435,-1732.49,0.00027808,2]
[379205648,1755185531444,-637.89,0.00027808,2]
[379205649,1755185531455,-400.0,0.00027808,2]
[379205650,1755185531465,-1303.2,0.00027808,2]
[379205651,1755185531475,-493.95,0.00027808,2]
[379205652,1755185531485,-1797.23,0.00027808,2]
[379205653,1755185531494,-1001.65,0.00027808,2]
[379205654,1755185531504,-400.0,0.00027808,2]
[379205655,1755185531514,-2335.488269,0.00027808,7]
[379205656,1755185531523,-2335.488269,0.00027808,7]
[379205657,1755185531533,-400.0,0.00027808,2]
[379205658,1755185531543,-1929.46,0.00027808,2]
[379205659,1755185531552,-400.0,0.00027808,2]
[379205660,1755185531562,-400.0,0.00027808,2]
[379205661,1755185531572,-1166.31,0.00027808,2]
[379205662,1755185531581,-2049.41,0.00027808,2]
[379205663,1755185531593,-400.0,0.00027808,2]
[379205664,1755185531612,-400.0,0.00027808,2]
[379205665,1755185531622,-4465.37,0.00027808,2]
[379205666,1755185531632,-963.47,0.00027808,2]
[379205667,1755185531642,-948.84,0.00027808,2]
[379205668,1755185531653,-1408.02,0.00027808,2]
[379205669,1755185531663,-1530.82,0.00027808,2]
[379205670,1755185531680,-400.0,0.00027808,2]
[379205671,1755185531698,-400.0,0.00027808,2]
[379205672,1755185531708,-3046.31,0.00027808,2]
[379205673,1755185531718,-400.0,0.00027808,2]
[379205674,1755185531727,-561.68,0.00027808,2]
[379205675,1755185531737,-400.0,0.00027808,2]
[379205676,1755185531747,-400.0,0.00027808,2]
[379205677,1755185531756,-447.53,0.00027808,2]
[379205678,1755185531766,-1003.23,0.00027808,2]
[379205679,1755185531776,-1209.98,0.00027808,2]
[379205680,1755185531786,-400.0,0.00027808,2]
[379205681,1755185531795,-875.45,0.00027808,2]
[379205682,1755185531805,-1083.08,0.00027808,2]
[379205683,1755185531815,-334.13,0.00027808,2]
[379205684,1755185531825,-2840.9,0.00027808,2]
[379205685,1755185531846,-1409.28,0.00027808,2]
[379205686,1755185531862,-1007.0,0.00027808,2]
[379205687,1755185531872,-1058.18,0.00027808,2]
[379205688,1755185531881,-400.0,0.00027808,2]
[379205689,1755185531891,-460.85,0.00027808,2]
[379205690,1755185531901,-400.0,0.00027808,2]
[379205691,1755185531911,-754.34,0.00027808,2]
[379205692,1755185531921,-400.0,0.00027808,2]
[379205693,1755185531931,-231.96483,0.00027808,7]
[379205694,1755185531941,-231.96483,0.00027808,7]
[379205695,1755185531954,-402.65,0.00027808,2]
[379205696,1755185531965,-400.0,0.00027808,2]
[379205697,1755185531974,-400.0,0.00027808,2]
[379205698,1755185531984,-400.0,0.00027808,2]
[379205699,1755185531994,-1839.09,0.00027808,2]
[379205700,1755185532005,-2962.88,0.00027808,2]
[379205701,1755185532015,-400.0,0.00027808,2]
[379205702,1755185532024,-231.96483,0.00027808,7]
[379205703,1755185532034,-400.0,0.00027808,2]
[379205704,1755185532044,-314.82046623,0.00027808,2]
[379205705,1755185532054,-4005.22,0.00027808,2]
[379205706,1755185532064,-658.03,0.00027808,2]
[379205707,1755185532075,-400.0,0.00027808,2]
[379205708,1755185532085,-1041.8,0.00027808,2]
[379205709,1755185532095,-3799.27,0.00027808,2]
[379205710,1755185532105,-420.935082,0.00027808,7]
[379205711,1755185532116,-1551.63,0.00027808,2]
[379205712,1755185532126,-930.3,0.00027808,2]
[379205713,1755185532136,-1068.92,0.00027808,2]
[379205714,1755185532150,-231.96483,0.00027808,7]
[379205715,1755185532161,-400.0,0.00027808,2]
[379205716,1755185532171,-400.0,0.00027808,2]
[379205717,1755185532183,-1866.08,0.00027808,2]
[379205718,1755185532194,-420.935082,0.00027808,7]
[379205719,1755185532206,-3896.3,0.00027808,2]
[379205720,1755185532217,-2005.64,0.00027808,2]